bitfinex/quotes_SOLUSD_20220130
["timestamp","ask_amount","ask_price","bid_price","bid_amount"]
[1643528419269,23.9408,96.685,96.68,0.00527471]
[1643528419469,46.17168759,96.684,96.68,0.00527471]
[1643528419870,0.25,96.683,96.68,0.00527471]
[1643528429579,1.43455206,96.719,96.68,0.00527471]
[1643528429782,148.8683244,96.72,96.68,11.59527471]
[1643528430179,148.8683244,96.72,96.69,6.0]
[1643528430379,148.8683244,96.72,96.691,0.25]
[1643528430578,148.8683244,96.72,96.691,6.25]
[1643528430980,1.43455206,96.76,96.692,43.74195135]
[1643528431182,1.43455206,96.785,96.7,6.0]
[1643528431381,1.43455206,96.785,96.692,43.74195135]
[1643528431382,1.43455206,96.795,96.71,14.9]
[1643528431581,1.43455206,96.795,96.702,6.0]
[1643528431582,141.53621267,96.787,96.72,20.9]
[1643528431779,141.53621267,96.787,96.74,15.502]
[1643528431978,141.53621267,96.787,96.74,24.052]
[1643528432180,141.53621267,96.787,96.74,8.55]
[1643528432379,0.25,96.786,96.74,8.55]
[1643528432581,141.53621267,96.787,96.68,0.00527471]
[1643528432879,1.43455206,96.792,96.691,6.0]
[1643528433081,1.43455206,96.794,96.7,6.0]
[1643528433281,1.43455206,96.795,96.701,0.25]
[1643528433681,1.43455206,96.796,96.72,15.505]
[1643528433906,0.25,96.795,96.721,0.25]
[1643528434105,0.25,96.795,96.73,6.0]
[1643528434304,0.25,96.797,96.731,0.25]
[1643528434505,23.8012,96.798,96.731,0.25]
[1643528434707,23.8012,96.798,96.731,1.9979165]
[1643528435105,23.8012,96.798,96.741,6.0]
[1643528435305,23.8012,96.798,96.742,0.25]
[1643528436412,23.8012,96.798,96.731,0.25]
[1643528436806,0.25,96.797,96.731,0.25]
[1643528437811,6.0,96.788,96.731,0.25]
[1643528438208,0.25,96.787,96.731,0.25]
[1643528438608,24.5035,96.787,96.731,0.25]
[1643528438809,23.7983,96.786,96.731,0.25]
[1643528439012,23.7983,96.786,96.7,6.0]
[1643528439013,49.9683743,96.776,96.707,0.25]
[1643528439208,43.9683743,96.776,96.707,0.25]
[1643528439409,0.25,96.775,96.701,0.25]
[1643528440610,6.0,96.766,96.69,14.9]
[1643528440810,0.25,96.765,96.691,0.25]
[1643528441409,43.9683743,96.776,96.691,0.25]
[1643528441613,0.25,96.775,96.7,6.0]
[1643528441910,0.25,96.775,96.701,0.25]
[1643528442110,0.25,96.775,96.691,0.25]
[1643528442310,0.25,96.775,96.702,6.0]
[1643528442719,0.25,96.775,96.703,0.25]
[1643528443112,6.0,96.766,96.703,0.25]
[1643528443412,0.25,96.765,96.703,0.25]
[1643528443816,22.7587,96.765,96.691,0.25]
[1643528444013,6.0,96.755,96.691,0.25]
[1643528444217,35.93046247,96.754,96.691,0.25]
[1643528446315,35.93046247,96.754,96.692,1.7479165]
[1643528446514,35.93046247,96.754,96.702,6.0]
[1643528446718,0.25,96.753,96.693,0.25]
[1643528447215,0.25,96.753,96.69,21.509]
[1643528447416,0.25,96.753,96.691,0.25]
[1643528448822,0.25,96.753,96.69,1.66339238]
[1643528449019,0.25,96.753,96.69,15.51]
[1643528450220,0.25,96.753,96.7,6.0]
[1643528450420,0.25,96.753,96.701,0.25]
[1643528451620,0.25,96.753,96.691,0.25]
[1643528452421,0.25,96.753,96.69,21.509]
[1643528452622,6.0,96.744,96.68,0.00527471]
[1643528452821,23.7875,96.743,96.68,0.00527471]
[1643528453821,23.5375,96.743,96.68,0.00527471]
[1643528454024,23.5375,96.743,96.68,15.51627471]
[1643528454426,23.5375,96.743,96.681,0.25]
[1643528455021,0.25,96.742,96.681,0.25]
[1643528455423,0.25,96.742,96.68,6.00527471]
[1643528455824,0.25,96.742,96.681,0.25]
[1643528457325,38.68832195,96.732,96.68,0.00527471]
[1643528458524,0.25,96.742,96.68,0.00527471]
[1643528459529,33.67956974,96.742,96.68,0.00527471]
[1643528461229,6.0,96.732,96.68,0.00527471]
[1643528461627,30.7208,96.731,96.68,0.00527471]
[1643528463033,21.52,96.73,96.68,0.00527471]
[1643528463328,42.47552854,96.72,96.68,0.00527471]
[1643528463529,6.0,96.71,96.68,0.00527471]
[1643528463930,6.25,96.709,96.68,0.00527471]
[1643528464331,15.73,96.709,96.68,0.00527471]
[1643528466240,15.525,96.7,96.68,0.00527471]
[1643528466442,53.06546138,96.699,96.68,0.00527471]
[1643528466637,6.0,96.689,96.68,0.00527471]
[1643528466838,0.25,96.688,96.68,0.00527471]
[1643528471638,6.0,96.689,96.68,0.00527471]
[1643528472843,0.25,96.688,96.68,0.00527471]
[1643528474046,24.7262,96.688,96.68,0.00527471]
[1643528474551,38.73904938,96.699,96.68,0.00527471]
[1643528474750,24.8766,96.719,96.68,0.00527471]
[1643528475048,24.3527,96.751,96.68,0.00527471]
[1643528475269,0.25,96.718,96.68,0.00527471]
[1643528475473,0.25,96.718,96.681,1.74696732]
[1643528476271,0.25,96.726,96.681,1.74696732]
[1643528476471,0.25,96.726,96.68,0.00527471]
[1643528477471,6.0,96.717,96.68,0.00527471]
[1643528477871,0.25,96.716,96.68,0.00527471]
[1643528478072,6.25,96.716,96.68,0.00527471]
[1643528478672,0.25,96.716,96.68,0.00527471]
[1643528478872,0.25,96.725,96.68,0.00527471]
[1643528481775,6.0,96.716,96.68,0.00527471]
[1643528481980,18.28,96.716,96.68,0.00527471]
[1643528482188,0.25,96.715,96.68,0.00527471]
[1643528482775,23.7273,96.715,96.68,0.00527471]
[1643528482978,29.7273,96.715,96.68,0.00527471]
[1643528483175,23.7273,96.715,96.68,0.00527471]
[1643528483576,6.0,96.705,96.68,0.00527471]
[1643528483776,23.2228,96.704,96.68,0.00527471]
[1643528483976,43.48351301,96.703,96.68,0.00527471]
[1643528484478,0.25,96.702,96.68,0.00527471]
[1643528487483,15.517,96.75,96.68,0.00527471]
[1643528487484,0.25,96.724,96.68,0.00527471]
[1643528487882,1.43455206,96.739,96.68,0.00527471]
[1643528488084,38.27552898,96.738,96.68,0.00527471]
[1643528488482,6.0,96.728,96.68,0.00527471]
[1643528488885,6.25,96.727,96.68,0.00527471]
[1643528489083,6.0,96.717,96.68,0.00527471]
[1643528489282,37.87234289,96.716,96.68,0.00527471]
[1643528489482,62.15984289,96.716,96.68,0.00527471]
[1643528493391,6.0,96.706,96.68,0.00527471]
[1643528493589,22.9066,96.705,96.68,0.00527471]
[1643528493788,23.1566,96.705,96.68,0.00527471]
[1643528494189,22.9066,96.705,96.68,0.00527471]
[1643528495588,0.25,96.704,96.68,0.00527471]
[1643528511300,6.0,96.695,96.68,0.00527471]
[1643528511498,45.31397232,96.694,96.68,0.00527471]
[1643528511698,45.56397232,96.694,96.68,0.00527471]
[1643528512098,6.0,96.684,96.68,0.00527471]
[1643528512300,0.25,96.683,96.68,0.00527471]
[1643528513499,0.25,96.692,96.68,0.00527471]
[1643528521140,6.0,96.683,96.68,0.00527471]
[1643528521343,23.4184,96.682,96.68,0.00527471]
[1643528521938,23.1684,96.682,96.68,0.00527471]
[1643528524038,0.25,96.681,96.68,0.00527471]
[1643528526345,23.1684,96.682,96.68,0.00527471]
[1643528528246,0.25,96.681,96.68,0.00527471]
[1643528536558,12.14,96.681,96.585,2.80764134]
[1643528536757,34.92415806,96.679,96.596,1.41076376]
[1643528536963,7.43455206,96.671,96.581,1.41076376]
[1643528537159,15.10932,96.678,96.576,1.41076376]
[1643528537160,1.43455206,96.667,96.576,1.41076376]
[1643528537360,1.43455206,96.658,96.568,1.41076376]
[1643528537560,6.0,96.648,96.561,1.41076376]
[1643528537766,6.0,96.648,96.56,1.41076376]
[1643528537958,42.35046881,96.641,96.56,1.41076376]
[1643528538159,42.35046881,96.641,96.54,2.85899483]
[1643528538160,6.0,96.64,96.561,1.41076376]
[1643528538459,6.0,96.64,96.54,2.85899483]
[1643528538460,6.0,96.631,96.559,1.41076376]
[1643528538659,24.9379,96.63,96.558,1.41076376]
[1643528538868,31.1879,96.63,96.55,6.0]
[1643528539060,6.0,96.62,96.553,6.0]
[1643528539260,40.35314761,96.619,96.554,6.25]
[1643528539460,23.4521,96.618,96.554,0.25]
[1643528539761,23.4521,96.618,96.564,6.0]
[1643528539962,0.25,96.617,96.554,0.25]
[1643528540160,40.10314761,96.619,96.554,6.25]
[1643528540561,40.10314761,96.619,96.554,0.25]
[1643528540761,40.10314761,96.619,96.564,6.0]
[1643528541261,40.10314761,96.619,96.565,0.25]
[1643528541467,23.3223,96.618,96.565,0.25]
[1643528541661,23.5723,96.618,96.55,6.0]
[1643528541861,6.0,96.608,96.556,0.25]
[1643528542263,0.25,96.607,96.556,0.25]
[1643528542679,0.25,96.607,96.55,6.0]
[1643528542680,14.11,96.607,96.55,6.0]
[1643528543080,6.0,96.597,96.545,6.0]
[1643528543281,43.81414276,96.596,96.542,6.0]
[1643528543480,43.81414276,96.596,96.53,6.0]
[1643528543681,6.0,96.586,96.53,6.0]
[1643528543881,0.25,96.585,96.53,6.0]
[1643528545485,3.206005,96.584,96.53,6.0]
[1643528545684,0.25,96.585,96.578,0.2131268]
[1643528546887,6.25,96.585,96.578,0.2131268]
[1643528547288,64.064926,96.584,96.578,0.2131268]
[1643528547489,23.9261,96.584,96.578,0.2131268]
[1643528547690,0.25,96.583,96.578,0.2131268]
[1643528550189,23.9261,96.584,96.578,0.2131268]
[1643528551591,0.25,96.583,96.578,0.2131268]
[1643528552393,14.955129,96.582,96.578,0.2131268]
[1643528552792,33.07986388,96.581,96.578,0.2131268]
[1643528560907,0.25,96.581,96.578,0.2131268]
[1643528561309,0.25,96.583,96.578,0.2131268]
[1643528566714,23.3097,96.616,96.578,0.2131268]
[1643528567117,126.4482,96.647,96.578,0.2131268]
[1643528567118,1.43455206,96.636,96.578,0.2131268]
[1643528567415,23.3097,96.646,96.578,0.2131268]
[1643528567615,1.43455206,96.656,96.578,1.96009412]
[1643528567818,1.43455206,96.656,96.588,6.0]
[1643528568020,1.43455206,96.672,96.588,17.19]
[1643528568215,105.66886725,96.677,96.59,14.9]
[1643528568415,105.66886725,96.677,96.591,0.25]
[1643528568618,105.66886725,96.677,96.6,6.0]
[1643528568815,105.66886725,96.677,96.601,0.25]
[1643528569035,105.66886725,96.677,96.602,6.0]
[1643528569436,105.66886725,96.677,96.61,6.0]
[1643528569643,105.66886725,96.677,96.611,6.0]
[1643528569836,0.25,96.676,96.612,0.25]
[1643528570237,0.25,96.678,96.612,0.25]
[1643528570840,0.25,96.678,96.611,6.0]
[1643528571037,0.25,96.678,96.612,0.25]
[1643528571842,44.37288986,96.679,96.612,0.25]
[1643528572343,44.37288986,96.679,96.611,0.25]
[1643528572541,44.37288986,96.679,96.59,14.9]
[1643528572542,103.6,96.678,96.59,14.9]
[1643528572941,103.6,96.678,96.6,6.0]
[1643528573147,44.37288986,96.679,96.6,6.0]
[1643528573341,0.25,96.678,96.601,0.25]
[1643528573540,0.25,96.678,96.6,6.0]
[1643528574947,103.85,96.678,96.6,6.0]
[1643528575343,6.0,96.668,96.59,14.9]
[1643528575543,6.0,96.668,96.591,0.25]
[1643528575743,0.25,96.667,96.591,0.25]
[1643528575943,6.25,96.667,96.591,0.25]
[1643528576142,6.25,96.667,96.59,14.9]
[1643528576345,6.25,96.667,96.591,0.25]
[1643528579146,0.25,96.667,96.591,0.25]
[1643528579346,0.25,96.676,96.591,0.25]
[1643528579547,6.0,96.667,96.6,6.0]
[1643528579748,6.0,96.667,96.6,20.9]
[1643528579948,0.25,96.666,96.601,0.25]
[1643528580648,0.25,96.666,96.61,6.0]
[1643528580848,0.25,96.666,96.611,0.25]
[1643528581048,0.25,96.676,96.611,0.25]
[1643528581453,0.25,96.676,96.61,6.0]
[1643528582350,0.25,96.676,96.611,0.25]
[1643528582650,0.25,96.676,96.6,14.9]
[1643528583250,0.25,96.676,96.58,14.9]
[1643528583453,0.25,96.676,96.59,6.0]
[1643528583852,6.0,96.667,96.59,6.0]
[1643528584256,0.25,96.666,96.581,6.0]
[1643528584854,0.25,96.666,96.582,0.25]
[1643528586355,6.0,96.667,96.582,0.25]
[1643528586554,6.0,96.66,96.581,6.0]
[1643528586754,46.04049143,96.659,96.582,0.25]
[1643528588355,0.25,96.658,96.582,0.25]
[1643528589956,24.3065,96.658,96.582,0.25]
[1643528590256,24.3065,96.658,96.581,6.0]
[1643528594058,24.3065,96.658,96.582,0.25]
[1643528595662,6.0,96.648,96.582,0.25]
[1643528595865,0.25,96.647,96.582,0.25]
[1643528597267,0.25,96.657,96.582,0.25]
[1643528598266,24.0565,96.658,96.582,0.25]
[1643528598471,24.0565,96.658,96.562,16.57906376]
[1643528598472,103.6,96.647,96.562,1.41076376]
[1643528598667,103.6,96.647,96.558,1.41076376]
[1643528598869,34.71356006,96.636,96.56,6.0]
[1643528599069,34.71356006,96.636,96.559,0.25]
[1643528599269,34.71356006,96.636,96.555,6.0]
[1643528599469,6.0,96.626,96.556,6.0]
[1643528599670,6.0,96.626,96.558,6.0]
[1643528599870,0.25,96.625,96.555,6.0]
[1643528600371,0.25,96.625,96.545,24.8999]
[1643528600570,24.2992,96.625,96.545,24.8999]
[1643528600777,24.2992,96.625,96.546,0.25]
[1643528601075,6.0,96.615,96.546,0.25]
[1643528601272,45.13716194,96.614,96.546,0.25]
[1643528601675,45.13716194,96.614,96.555,6.0]
[1643528601875,45.13716194,96.614,96.556,0.25]
[1643528602275,45.13716194,96.614,96.555,6.0]
[1643528603700,45.13716194,96.614,96.556,0.25]
[1643528604699,6.0,96.604,96.545,24.8999]
[1643528604899,0.25,96.603,96.546,0.25]
[1643528605103,6.25,96.603,96.546,0.25]
[1643528605300,0.25,96.603,96.546,0.25]
[1643528606302,0.25,96.612,96.546,0.25]
[1643528607698,0.25,96.612,96.555,6.0]
[1643528607899,0.25,96.612,96.556,0.25]
[1643528609600,0.25,96.612,96.546,0.25]
[1643528612604,0.25,96.612,96.555,6.0]
[1643528612803,0.25,96.612,96.556,0.25]
[1643528613206,0.25,96.612,96.555,6.0]
[1643528614807,0.25,96.612,96.556,0.25]
[1643528616206,0.25,96.612,96.551,0.25]
[1643528617608,0.25,96.612,96.546,0.25]
[1643528618610,6.0,96.603,96.546,0.25]
[1643528618812,0.25,96.602,96.546,0.25]
[1643528619113,0.25,96.612,96.546,0.25]
[1643528619510,6.0,96.603,96.546,0.25]
[1643528619911,0.25,96.602,96.546,0.25]
[1643528621413,0.25,96.612,96.546,0.25]
[1643528622113,0.25,96.612,96.555,6.0]
[1643528622312,0.25,96.612,96.546,0.25]
[1643528623212,6.0,96.603,96.546,0.25]
[1643528623413,0.25,96.602,96.546,0.25]
[1643528623613,0.25,96.602,96.545,24.8999]
[1643528624815,0.25,96.602,96.546,0.25]
[1643528625215,22.8863,96.602,96.546,0.25]
[1643528625416,22.8863,96.602,96.53,1.41076376]
[1643528625417,30.794189,96.601,96.53,1.41076376]
[1643528625620,103.6,96.59,96.578,0.0031268]
[1643528625816,0.25,96.589,96.578,0.0031268]
[1643528626017,6.0,96.58,96.578,0.0031268]
[1643528626418,6.25,96.579,96.578,0.0031268]
[1643528626819,20.555568,96.579,96.578,0.0031268]
[1643528627019,6.25,96.579,96.578,0.0031268]
[1643528627420,22.462977,96.579,96.578,0.0031268]
[1643528630620,6.25,96.579,96.578,0.0031268]
[1643528632928,48.5392,96.599,96.578,0.0031268]
[1643528633327,0.25,96.598,96.578,0.0031268]
[1643528634428,0.25,96.606,96.578,0.0031268]
[1643528634833,0.25,96.607,96.578,0.0031268]
[1643528635231,6.0,96.609,96.578,0.0031268]
[1643528635431,0.25,96.608,96.578,0.0031268]
[1643528635833,23.5529,96.608,96.578,0.0031268]
[1643528636033,6.0,96.598,96.578,0.0031268]
[1643528636454,23.6118,96.597,96.578,0.0031268]
[1643528638055,0.25,96.597,96.578,0.0031268]
[1643528638254,0.25,96.617,96.578,0.0031268]
[1643528638456,6.0,96.608,96.578,0.0031268]
[1643528638655,23.5757,96.629,96.578,0.0031268]
[1643528638656,6.0,96.609,96.578,0.0031268]
[1643528638856,0.25,96.607,96.578,0.0031268]
[1643528639258,6.0,96.599,96.578,0.0031268]
[1643528639459,0.25,96.598,96.578,0.0031268]
[1643528639762,22.8217,96.598,96.578,0.0031268]
[1643528639957,0.25,96.598,96.578,0.0031268]
[1643528640657,0.25,96.606,96.578,0.0031268]
[1643528641057,6.0,96.605,96.578,0.0031268]
[1643528641258,0.25,96.604,96.578,0.0031268]
[1643528642660,0.25,96.615,96.578,0.0031268]
[1643528642860,6.0,96.606,96.578,0.0031268]
[1643528643060,6.0,96.607,96.578,0.0031268]
[1643528643260,0.25,96.605,96.578,0.0031268]
[1643528643460,6.0,96.606,96.578,0.0031268]
[1643528644061,1.43455206,96.621,96.578,0.0031268]
[1643528644062,6.0,96.611,96.578,0.0031268]
[1643528644661,6.0,96.613,96.578,0.0031268]
[1643528644864,0.25,96.612,96.578,0.0031268]
[1643528645262,0.25,96.613,96.578,0.0031268]
[1643528645665,6.0,96.608,96.578,0.0031268]
[1643528645864,0.25,96.607,96.578,0.0031268]
[1643528646265,22.8488,96.607,96.578,0.0031268]
[1643528646665,126.4488,96.607,96.578,0.0031268]
[1643528646866,6.0,96.597,96.578,0.0031268]
[1643528647065,22.5988,96.596,96.578,0.0031268]
[1643528647266,22.8488,96.596,96.578,0.0031268]
[1643528650773,22.5988,96.596,96.578,0.0031268]
[1643528652074,0.25,96.595,96.578,0.0031268]
[1643528653377,22.5988,96.596,96.578,0.0031268]
[1643528653773,103.6,96.638,96.578,0.0031268]
[1643528653774,1.43455206,96.617,96.578,0.0031268]
[1643528654176,6.0,96.607,96.578,0.0031268]
[1643528654576,6.0,96.603,96.578,0.0031268]
[1643528654981,6.0,96.602,96.578,0.0031268]
[1643528655205,6.0,96.599,96.578,0.0031268]
[1643528655377,0.25,96.598,96.578,0.0031268]
[1643528656679,0.25,96.601,96.578,0.0031268]
[1643528662484,1.68455206,96.601,96.578,0.0031268]
[1643528662708,6.0,96.592,96.578,0.0031268]
[1643528662888,6.25,96.591,96.578,0.0031268]
[1643528663084,23.3863,96.591,96.578,0.0031268]
[1643528664093,6.0,96.581,96.578,0.0031268]
[1643528664293,0.25,96.58,96.578,0.0031268]
[1643528664895,21.95252542,96.579,96.578,0.0031268]
[1643528665293,3.20669142,96.579,96.578,0.0031268]
[1643528665498,0.25,96.579,96.578,0.0031268]
[1643528665997,24.2387,96.58,96.578,0.0031268]
[1643528667296,0.25,96.579,96.578,0.0031268]
[1643528671117,14.549666,96.579,96.578,0.0031268]
[1643528671317,0.25,96.579,96.578,0.0031268]
[1643528671516,16.45796,96.579,96.578,0.0031268]
[1643528672219,0.25,96.579,96.578,0.0031268]
[1643528672619,3.606001,96.579,96.578,0.0031268]
[1643528673621,0.25,96.579,96.578,0.0031268]
[1643528679425,18.938752,96.579,96.578,0.0031268]
[1643528680026,0.25,96.579,96.578,0.0031268]
[1643528683633,14.551141,96.579,96.578,0.0031268]
[1643528684028,0.25,96.579,96.578,0.0031268]
[1643528685430,3.20669142,96.579,96.578,0.0031268]
[1643528685830,7.05846542,96.579,96.578,0.0031268]
[1643528686030,0.25,96.579,96.578,0.0031268]
[1643528690735,24.2387,96.58,96.578,0.0031268]
[1643528692135,0.25,96.579,96.578,0.0031268]
[1643528695341,17.50482942,96.579,96.578,0.0031268]
[1643528695943,3.20669142,96.579,96.578,0.0031268]
[1643528696344,0.25,96.579,96.578,0.0031268]
[1643528698169,4.406436,96.579,96.578,0.0031268]
[1643528698568,18.706102,96.579,96.578,0.0031268]
[1643528698970,21.66279342,96.579,96.578,0.0031268]
[1643528699176,23.10371672,96.579,96.578,0.0031268]
[1643528699370,137.87652272,96.579,96.578,0.0031268]
[1643528699571,136.43559942,96.579,96.578,0.0031268]
[1643528700071,32.83559942,96.579,96.578,0.0031268]
[1643528700474,29.878908,96.579,96.578,0.0031268]
[1643528700873,31.31979331,96.579,96.578,0.0031268]
[1643528701073,32.83559942,96.579,96.578,0.0031268]
[1643528701274,56.24209942,96.579,96.578,0.0031268]
[1643528702175,40.02928742,96.579,96.578,0.0031268]
[1643528702375,37.072596,96.579,96.578,0.0031268]
[1643528702575,51.365313,96.579,96.578,0.0031268]
[1643528703176,52.80525921,96.579,96.578,0.0031268]
[1643528703377,55.76195063,96.579,96.578,0.0031268]
[1643528704378,159.36195063,96.579,96.578,0.0031268]
[1643528704580,157.67200442,96.579,96.578,0.0031268]
[1643528704779,156.15514464,96.579,96.578,0.0031268]
[1643528704980,51.115313,96.579,96.578,0.0031268]
[1643528705981,24.2387,96.58,96.578,0.0031268]
[1643528706182,1.43983164,96.588,96.578,0.0031268]
[1643528706384,1.43983164,96.597,96.578,0.0031268]
[1643528706581,1.43983164,96.617,96.578,0.0031268]
[1643528706980,43.63309777,96.616,96.578,0.0031268]
[1643528707181,1.43983164,96.614,96.578,0.0031268]
[1643528707380,6.0,96.606,96.578,0.0031268]
[1643528707581,6.0,96.604,96.578,0.0031268]
[1643528707781,24.2038,96.603,96.578,0.0031268]
[1643528707983,6.0,96.593,96.578,0.0031268]
[1643528708184,24.2038,96.603,96.578,0.0031268]
[1643528708581,6.0,96.593,96.578,0.0031268]
[1643528708781,0.25,96.592,96.578,0.0031268]
[1643528709982,0.25,96.602,96.578,0.0031268]
[1643528714487,6.0,96.593,96.578,0.0031268]
[1643528714984,45.541709,96.592,96.578,0.0031268]
[1643528715186,6.0,96.591,96.578,0.0031268]
[1643528715485,6.0,96.582,96.578,0.0031268]
[1643528715687,24.1626,96.581,96.578,0.0031268]
[1643528715885,30.4126,96.581,96.578,0.0031268]
[1643528716088,24.4126,96.581,96.578,0.0031268]
[1643528719191,13.841057,96.58,96.578,0.0031268]
[1643528719393,103.85,96.579,96.578,0.0031268]
[1643528719598,173.73407742,96.579,96.578,0.0031268]
[1643528721392,40.08792542,96.579,96.578,0.0031268]
[1643528721591,63.15635442,96.579,96.578,0.0031268]
[1643528722994,166.75635442,96.579,96.578,0.0031268]
[1643528723795,163.799663,96.579,96.578,0.0031268]
[1643528724297,166.75635442,96.579,96.578,0.0031268]
[1643528738138,179.97635442,96.579,96.578,0.0031268]
[1643528739841,202.20158157,96.579,96.578,0.0031268]
[1643528740342,189.16662357,96.579,96.578,0.0031268]
[1643528740641,175.94662357,96.579,96.578,0.0031268]
[1643528741843,186.33755585,96.579,96.578,0.4262536]
[1643528742040,186.33755585,96.579,96.52,0.0812112]
[1643528742041,188.06222493,96.579,96.52,0.0812112]
[1643528742241,36.04573399,96.561,96.52,0.0812112]
[1643528742443,142.7129,96.56,96.52,0.0812112]
[1643528742644,103.6,96.55,96.52,0.0812112]
[1643528742842,24.4629,96.549,96.52,0.0812112]
[1643528743042,103.6,96.548,96.52,0.0812112]
[1643528743443,0.25,96.547,96.52,0.0812112]
[1643528745442,6.0,96.538,96.52,0.0812112]
[1643528745644,103.6,96.528,96.52,0.0812112]
[1643528745844,0.25,96.527,96.52,0.0812112]
[1643528746844,0.25,96.528,96.52,0.0812112]
[1643528747046,6.0,96.527,96.52,0.0812112]
[1643528747344,0.25,96.526,96.52,0.0812112]
[1643528748349,25.0979,96.526,96.52,0.0812112]
[1643528748552,14.297117,96.525,96.52,0.0812112]
[1643528749174,42.70635205,96.537,96.52,0.0812112]
[1643528749375,20.013892,96.536,96.52,0.0812112]
[1643528750074,6.0,96.526,96.52,0.0812112]
[1643528750279,0.25,96.525,96.52,0.0812112]
[1643528750675,0.25,96.533,96.52,0.0812112]
[1643528750875,14.295637,96.532,96.52,0.0812112]
[1643528751376,0.25,96.531,96.52,0.0812112]
[1643528751976,19.16349942,96.53,96.52,0.0812112]
[1643528752175,16.206808,96.529,96.52,0.0812112]
[1643528752384,0.25,96.531,96.52,0.0812112]
[1643528752576,0.25,96.528,96.52,0.0812112]
[1643528752779,0.25,96.531,96.52,0.0812112]
[1643528753177,42.70635205,96.537,96.52,0.0812112]
[1643528754378,0.25,96.536,96.52,0.0812112]
[1643528755181,0.25,96.536,96.451,1.41076376]
[1643528755182,103.6,96.534,96.451,1.41076376]
[1643528755384,103.6,96.526,96.52,0.1624224]
[1643528755580,42.0,96.522,96.43,0.97183263]
[1643528755780,103.6,96.499,96.43,0.97183263]
[1643528756181,6.0,96.489,96.43,0.97183263]
[1643528756382,22.9593,96.488,96.43,0.97183263]
[1643528756581,109.6,96.487,96.43,0.97183263]
[1643528756784,35.82428697,96.477,96.43,0.97183263]
[1643528756983,41.82428697,96.477,96.43,0.97183263]
[1643528757182,0.25,96.476,96.43,0.97183263]
[1643528758794,15.555,96.51,96.43,0.97183263]
[1643528758988,103.6,96.508,96.43,6.97183263]
[1643528759185,103.6,96.499,96.43,0.97183263]
[1643528759386,103.6,96.497,96.43,0.97183263]
[1643528759887,103.6,96.495,96.43,0.97183263]
[1643528760289,0.25,96.494,96.43,0.97183263]
[1643528762590,6.0,96.485,96.43,0.97183263]
[1643528762790,24.7758,96.484,96.43,0.97183263]
[1643528763793,35.33283061,96.473,96.43,0.97183263]
[1643528763995,0.25,96.472,96.43,0.97183263]
[1643528764197,6.0,96.463,96.43,0.97183263]
[1643528764398,0.25,96.462,96.43,0.97183263]
[1643528765497,0.25,96.489,96.43,0.97183263]
[1643528765696,0.25,96.499,96.43,0.97183263]
[1643528765896,6.0,96.49,96.43,0.97183263]
[1643528766095,43.33398613,96.489,96.43,0.97183263]
[1643528766296,67.93118613,96.489,96.43,0.97183263]
[1643528766895,43.58398613,96.489,96.43,0.97183263]
[1643528768596,23.2211,96.488,96.43,0.97183263]
[1643528768796,0.25,96.487,96.43,0.97183263]
[1643528769199,14.9,96.51,96.43,0.97183263]
[1643528769397,23.2211,96.519,96.43,0.97183263]
[1643528769998,41.5052517,96.508,96.438,6.0]
[1643528770198,41.5052517,96.508,96.439,23.302]
[1643528771399,2.95669142,96.524,96.44,103.6]
[1643528771699,0.1,97.342,96.44,103.6]
[1643528771700,1.43686473,96.55,96.45,6.0]